bitfinex/quotes_BTCUSD_20230115
["timestamp","ask_amount","ask_price","bid_price","bid_amount"]
[1673752930748,1.44527312,20604.0,20603.0,0.0796]
[1673752931271,1.44527312,20604.0,20603.0,0.95556796]
[1673752931542,1.44527312,20604.0,20603.0,1.18350215]
[1673752931856,1.44527312,20604.0,20603.0,1.3401708]
[1673752932114,0.94022688,20607.0,20603.0,2.27500384]
[1673752932377,0.94022688,20607.0,20604.0,0.1]
[1673752932378,1.13095283,20607.0,20604.0,0.1]
[1673752932643,1.13095283,20607.0,20606.0,0.0789]
[1673752932644,0.94022688,20607.0,20606.0,0.0789]
[1673752932897,0.94022688,20607.0,20606.0,0.4585]
[1673752933991,0.00255451,20609.0,20606.0,1.68833304]
[1673752934253,0.83092947,20608.0,20607.0,2.30287504]
[1673752934540,0.00255451,20609.0,20608.0,0.1]
[1673752934815,5.451e-05,20609.0,20608.0,2.13474969]
[1673752935064,0.95561841,20611.0,20609.0,0.1]
[1673752935345,0.95561841,20611.0,20610.0,2.21180369]
[1673752935605,2.4295641,20617.0,20611.0,0.95561]
[1673752936126,2.4295641,20617.0,20612.0,0.93233304]
[1673752936145,2.4295641,20617.0,20612.0,2.38773804]
[1673752936387,2.4295641,20617.0,20616.0,0.7642]
[1673752936637,1.9975641,20617.0,20616.0,3.15201304]
[1673752936899,1.9165641,20617.0,20616.0,1.69683304]
[1673752937214,0.86495705,20618.0,20617.0,0.1]
[1673752937428,0.86495705,20618.0,20617.0,0.58570169]
[1673752937682,0.86495705,20618.0,20617.0,1.34560169]
[1673752937961,0.86495705,20618.0,20617.0,1.83063769]
[1673752938220,0.82627705,20618.0,20617.0,1.83063769]
[1673752938495,0.24060826,20621.0,20618.0,0.82627]
[1673752938747,0.24060826,20621.0,20620.0,0.7642]
[1673752938748,0.10970826,20621.0,20620.0,0.7642]
[1673752938998,0.13652,20624.0,20620.0,1.39343304]
[1673752939251,0.54282991,20623.0,20621.0,0.64946676]
[1673752939509,0.54282991,20623.0,20619.0,0.36130415]
[1673752939794,0.54282991,20623.0,20619.0,0.45149682]
[1673752940066,0.54282991,20623.0,20619.0,0.36130415]
[1673752940315,0.54282991,20623.0,20621.0,0.28954401]
[1673752940570,0.21612,20624.0,20616.0,0.22623135]
[1673752940831,0.0796,20619.0,20616.0,0.31391356]
[1673752941134,0.0796,20619.0,20618.0,0.27828676]
[1673752941135,0.19072595,20619.0,20618.0,0.27828676]
[1673752941411,0.32256,20622.0,20618.0,0.27828676]
[1673752941678,0.1589,20619.0,20608.0,0.0792]
[1673752941937,0.0796,20613.0,20609.0,0.01583]
[1673752942210,0.14289,20617.0,20607.0,0.485258]
[1673752942732,0.3813983,20619.0,20608.0,0.585235]
[1673752942735,0.32425397,20620.0,20608.0,0.585235]
[1673752942736,0.70565227,20620.0,20608.0,0.585235]
[1673752942991,0.19072595,20619.0,20617.0,0.0788]
[1673752943246,0.37805496,20622.0,20618.0,0.23401135]
[1673752943503,0.36106599,20621.0,20619.0,0.14663135]
[1673752943776,0.33873368,20620.0,20615.0,0.485064]
[1673752944028,0.26962595,20619.0,20611.0,0.27024354]
[1673752944295,0.26962595,20619.0,20612.0,0.14663135]
[1673752944296,0.0795,20617.0,20612.0,0.14663135]
[1673752944548,0.3036046,20618.0,20614.0,0.0796]
[1673752944795,0.3036046,20618.0,20615.0,0.485078]
[1673752945111,0.13652,20624.0,20617.0,0.1592]
[1673752945343,0.37178416,20623.0,20620.0,0.0796]
[1673752945591,0.37178416,20623.0,20621.0,0.14663135]
[1673752945847,0.13652,20624.0,20622.0,1.19566935]
[1673752946103,0.52673447,20624.0,20622.0,1.19566935]
[1673752946372,0.52673447,20624.0,20622.0,1.049038]
[1673752946878,0.13652,20624.0,20623.0,0.0796]
[1673752947135,0.13652,20624.0,20623.0,1.12979669]
[1673752947383,0.13652,20624.0,20623.0,1.52979669]
[1673752947909,0.13652,20624.0,20623.0,1.52129669]
[1673752950014,0.32724595,20624.0,20623.0,0.484895]
[1673752950283,0.70710724,20624.0,20620.0,1.14920366]
[1673752950543,0.19072595,20623.0,20619.0,0.35722695]
[1673752950784,0.19072595,20622.0,20616.0,0.485049]
[1673752951037,0.19072595,20621.0,20618.0,0.31885493]
[1673752951292,0.27032595,20621.0,20618.0,0.31885493]
[1673752951559,0.1586,20619.0,20611.0,0.626825]
[1673752951820,0.0796,20616.0,20614.0,0.33907349]
[1673752952054,0.19072595,20615.0,20614.0,0.33907349]
[1673752952311,0.484963,20621.0,20614.0,0.62383304]
[1673752952564,0.33983657,20622.0,20615.0,0.68621634]
[1673752952897,0.37157215,20620.0,20616.0,0.22603135]
[1673752953103,0.37157215,20620.0,20612.0,0.61796169]
[1673752953104,0.1,20616.0,20612.0,0.485147]
[1673752953330,0.19072595,20615.0,20610.0,0.625702]
[1673752953580,0.19072595,20614.0,20610.0,0.485188]
[1673752953818,0.19072595,20613.0,20610.0,0.485188]
[1673752954077,0.0789,20618.0,20611.0,0.0970407]
[1673752954343,0.19072595,20617.0,20611.0,0.24367205]
[1673752954610,0.0795,20613.0,20607.0,0.625933]
[1673752954867,0.19072595,20612.0,20607.0,0.625933]
[1673752955125,0.19072595,20611.0,20607.0,0.625933]
[1673752955437,0.0795,20613.0,20607.0,0.625933]
[1673752955438,0.0795,20613.0,20607.0,0.14663135]
[1673752955691,0.0796,20616.0,20608.0,0.14663135]
[1673752955949,0.0796,20619.0,20610.0,1.535182]
[1673752956203,0.0796,20619.0,20611.0,0.22789391]
[1673752956455,1.092388,20622.0,20613.0,0.970246]
[1673752956456,0.4667,20622.0,20613.0,0.970246]
[1673752956711,0.13652,20624.0,20615.0,0.0796]
[1673752956993,0.13652,20624.0,20617.0,0.564622]
[1673752957244,0.13652,20624.0,20618.0,0.14663135]
[1673752957495,0.13652,20624.0,20619.0,0.14663135]
[1673752957748,0.13652,20624.0,20620.0,0.63158835]
[1673752958039,0.13652,20624.0,20621.0,0.14663135]
[1673752958250,0.13652,20624.0,20621.0,0.2384624]
[1673752958491,0.13652,20624.0,20621.0,0.7233884]
[1673752959001,0.32724595,20624.0,20620.0,0.564557]
[1673752959275,0.32724595,20624.0,20617.0,0.485026]
[1673752959276,0.19072595,20623.0,20617.0,0.485026]
[1673752959530,0.19072595,20622.0,20618.0,0.0796]
[1673752959773,0.13652,20624.0,20619.0,0.484984]
[1673752960289,0.13652,20624.0,20621.0,0.0792]
[1673752960580,0.13652,20624.0,20622.0,0.58710213]
[1673752961314,0.13652,20624.0,20620.0,0.29790239]
[1673752961315,0.32724595,20624.0,20620.0,0.29790239]
[1673752961563,0.71043699,20624.0,20620.0,0.29790239]
[1673752961886,0.32724595,20624.0,20619.0,0.629735]
[1673752962086,0.19072595,20623.0,20619.0,0.71777659]
[1673752962335,0.19072595,20623.0,20620.0,0.38087119]
[1673752962590,0.53567234,20624.0,20620.0,0.38087119]
[1673752962845,0.33653897,20623.0,20620.0,0.38087119]
[1673752963128,0.36921863,20622.0,20619.0,0.08804159]
[1673752963353,0.19072595,20621.0,20615.0,0.77444737]
[1673752963600,0.19072595,20620.0,20616.0,0.56314643]
[1673752963858,0.67571995,20619.0,20615.0,0.28937937]
[1673752964116,0.67571995,20619.0,20616.0,0.37442543]
[1673752964117,0.19072595,20618.0,20616.0,0.37442543]
[1673752964363,0.485036,20617.0,20616.0,0.37442543]
[1673752964655,0.485036,20617.0,20611.0,0.14207]
[1673752964904,0.485036,20617.0,20615.0,0.37244133]
[1673752964905,0.19072595,20616.0,20615.0,0.37244133]
[1673752965156,0.19072595,20616.0,20610.0,0.485198]
[1673752965404,0.19072595,20616.0,20608.0,0.485245]
[1673752965405,0.19072595,20615.0,20608.0,0.485245]
[1673752965696,0.970266,20613.0,20609.0,0.30572105]
[1673752965963,0.19072595,20612.0,20609.0,0.30572105]
[1673752966211,1.16107995,20611.0,20610.0,0.01913096]
[1673752966467,0.51187695,20611.0,20610.0,0.01913096]
[1673752966721,0.62103805,20611.0,20610.0,0.01913096]
[1673752966992,0.72103805,20611.0,20610.0,0.01913096]
[1673752967261,0.42103805,20611.0,20610.0,0.01913096]
[1673752967510,0.1,20610.0,20607.0,0.34906801]
[1673752967768,0.29072595,20610.0,20603.0,0.03912]
[1673752968019,0.32724595,20610.0,20604.0,0.29050135]
[1673752968526,0.32724595,20610.0,20605.0,0.14663135]
[1673752968789,0.32724595,20610.0,20604.0,0.14387]
[1673752968790,0.19072595,20609.0,20604.0,0.14387]
[1673752969039,0.19072595,20609.0,20604.0,0.629207]
[1673752969288,0.19072595,20609.0,20604.0,0.77583835]
[1673752969554,0.13652,20610.0,20605.0,0.14663135]
[1673752969807,0.13652,20609.0,20606.0,1.60248635]
[1673752970069,0.13652,20609.0,20607.0,0.4]
[1673752970320,0.13652,20609.0,20608.0,0.485248]
[1673752970583,0.32724595,20609.0,20606.0,0.485289]
[1673752970848,0.52705018,20608.0,20606.0,0.26903727]
[1673752971102,0.421145,20607.0,20604.0,0.37953862]
[1673752971355,0.13652,20608.0,20606.0,0.14735451]
[1673752971613,0.485163,20612.0,20608.0,0.39649605]
[1673752971863,0.29666322,20611.0,20609.0,0.14663135]
[1673752972411,0.33719282,20608.0,20605.0,0.36886299]
[1673752972643,0.19072595,20607.0,20600.0,3.19733903]
[1673752972902,0.1,20605.0,20600.0,0.52133903]
[1673752973157,0.19072595,20604.0,20600.0,0.52133903]
[1673752973455,1.48260895,20603.0,20600.0,0.52133903]
[1673752973686,0.321145,20602.0,20600.0,0.96395482]
[1673752973934,0.13652,20602.0,20601.0,0.34243068]
[1673752974196,0.13652,20602.0,20601.0,0.14663135]
[1673752974485,0.13652,20602.0,20601.0,0.07411483]
[1673752974928,0.13652,20602.0,20601.0,0.65952783]
[1673752974933,0.13652,20602.0,20601.0,0.55952783]
[1673752976339,0.13652,20602.0,20601.0,0.8592436]
[1673752976591,0.13652,20602.0,20601.0,1.34494529]
[1673752976881,0.13652,20602.0,20601.0,1.44494529]
[1673752979070,0.24369,20613.0,20601.0,1.44494529]
[1673752979071,0.28980514,20614.0,20601.0,1.56344529]
[1673752979344,0.28980514,20614.0,20602.0,1.48353026]
[1673752979345,0.19072595,20613.0,20602.0,1.48353026]
[1673752979601,0.19072595,20613.0,20605.0,1.941216]
[1673752979860,0.28980514,20614.0,20606.0,1.4131909]
[1673752980110,0.28980514,20614.0,20607.0,0.69766364]
[1673752980364,0.36729231,20616.0,20608.0,2.240956]
[1673752980633,1.32665765,20622.0,20609.0,0.0085]
[1673752980634,0.36376904,20622.0,20609.0,0.0085]
[1673752980903,0.1547,20621.0,20609.0,0.48935786]
[1673752981156,0.1547,20621.0,20612.0,1.940532]
[1673752981157,0.30375073,20621.0,20612.0,1.940532]
[1673752981489,0.30375073,20621.0,20613.0,0.3]
[1673752981749,0.30375073,20621.0,20615.0,1.455222]
[1673752982482,0.37045596,20621.0,20615.0,1.455222]
[1673752982741,0.19072595,20620.0,20612.0,0.15515]
[1673752983020,0.19072595,20619.0,20613.0,0.14663135]
[1673752983242,0.19072595,20620.0,20614.0,0.0085]
[1673752983480,0.19072595,20620.0,20615.0,0.14663135]
[1673752983725,1.924837,20622.0,20616.0,0.14663135]
[1673752983964,2.26460854,20622.0,20617.0,0.14663135]
[1673752984202,2.26460854,20622.0,20618.0,0.14663135]
[1673752984444,1.924837,20622.0,20619.0,0.16129448]
[1673752984929,1.924837,20622.0,20619.0,0.01466313]
[1673752985177,0.39002558,20619.0,20615.0,0.3570721]
[1673752985420,0.19072595,20618.0,20615.0,0.3570721]
[1673752985669,0.19072595,20617.0,20615.0,0.3570721]
[1673752985916,0.1,20621.0,20615.0,0.05826415]
[1673752986156,0.1,20621.0,20616.0,0.47264815]
[1673752986392,0.1,20621.0,20617.0,0.14663135]
[1673752986393,0.41997322,20621.0,20617.0,0.14663135]
[1673752986636,0.41997322,20621.0,20618.0,0.04726482]
[1673752986892,0.41997322,20621.0,20618.0,0.14663135]
[1673752987132,0.41997322,20621.0,20616.0,0.3]
[1673752987370,0.29072595,20621.0,20616.0,0.44663135]
[1673752987619,0.1,20621.0,20617.0,0.63233304]
[1673752987899,0.1,20621.0,20618.0,0.87720169]
[1673752988152,0.1,20621.0,20620.0,0.1]
[1673752988386,0.1,20621.0,20618.0,0.96220969]
[1673752988633,0.49220754,20621.0,20618.0,1.44720169]
[1673752988882,0.1,20621.0,20618.0,0.97]
[1673752989168,0.1,20621.0,20619.0,0.36772008]
[1673752989424,0.1,20621.0,20619.0,0.85270008]
[1673752989658,0.1,20621.0,20620.0,0.4]
[1673752989898,0.1,20621.0,20620.0,1.85563369]
[1673752991391,0.00368683,20622.0,20621.0,0.1]
[1673752991685,0.00368683,20622.0,20621.0,1.07064369]
[1673752991920,0.00368683,20622.0,20621.0,1.37064369]
[1673752992172,0.00368683,20622.0,20621.0,1.09400923]
[1673752992412,0.00368683,20622.0,20621.0,0.793442]
[1673752992913,0.00368683,20622.0,20621.0,0.484942]
[1673752993156,0.00368683,20622.0,20620.0,0.78279093]
[1673752993401,0.5171366,20622.0,20617.0,0.485023]
[1673752993642,0.5171366,20622.0,20619.0,0.40189588]
[1673752993643,0.19072595,20621.0,20619.0,0.40189588]
[1673752993933,0.00368683,20622.0,20619.0,0.40189588]
[1673752994271,0.00368683,20622.0,20619.0,1.10882004]
[1673752994543,0.00368683,20622.0,20620.0,0.35570096]
[1673752994796,0.00368683,20622.0,20620.0,1.32560696]
[1673752995059,0.00368683,20622.0,20621.0,0.3]
[1673752995318,0.19441278,20622.0,20617.0,0.485036]
[1673752995568,0.49243838,20621.0,20618.0,0.29853474]
[1673752996078,0.30171243,20621.0,20618.0,0.29853474]
[1673752996627,0.00368683,20622.0,20618.0,0.63163335]
[1673752997120,0.00368683,20622.0,20619.0,0.3]
[1673752997372,0.00368683,20622.0,20620.0,1.06309533]
[1673752997634,0.00368683,20622.0,20621.0,0.78570169]
[1673752997913,0.00368683,20622.0,20621.0,1.37064369]
[1673752998457,0.00368683,20622.0,20621.0,0.84736611]
[1673752998687,0.00368683,20622.0,20621.0,0.484942]
[1673753000489,0.00368683,20622.0,20621.0,0.83850884]
[1673753001306,0.07399683,20625.0,20622.0,0.37160414]
[1673753001563,0.07399683,20625.0,20616.0,0.15278]
[1673753001564,0.26472278,20625.0,20616.0,0.15278]
[1673753001839,0.88990551,20624.0,20620.0,0.29029554]
[1673753002094,0.07399683,20625.0,20621.0,0.14663135]
[1673753002365,0.07399683,20625.0,20622.0,0.14663135]
[1673753002599,0.07399683,20625.0,20623.0,0.01466313]
[1673753003114,0.07399683,20625.0,20623.0,0.49954513]
[1673753003615,0.36967081,20625.0,20623.0,0.49954513]
[1673753004126,0.32480498,20623.0,20622.0,0.484906]
[1673753004382,0.32480498,20623.0,20620.0,0.84569339]
[1673753004653,0.51553093,20623.0,20621.0,0.3993625]
[1673753004928,0.32480498,20623.0,20621.0,0.3993625]
[1673753005421,0.32480498,20623.0,20619.0,0.484985]
[1673753005687,0.32480498,20623.0,20619.0,0.3374707]
[1673753005688,0.51553093,20623.0,20619.0,0.3374707]
[1673753006739,1.00042693,20623.0,20619.0,0.3374707]
[1673753007272,1.00042693,20623.0,20615.0,0.485081]
[1673753007273,0.51187095,20622.0,20615.0,0.485081]
[1673753007536,0.969935,20620.0,20616.0,0.37887614]
[1673753007790,0.51187095,20619.0,20616.0,0.37887614]
[1673753008040,0.21483,20618.0,20616.0,0.37887614]
[1673753008325,0.19072595,20618.0,20616.0,0.37887614]
[1673753008565,0.485018,20618.0,20616.0,0.37887614]
[1673753009326,0.48499,20619.0,20616.0,0.37887614]
[1673753009579,0.48501,20619.0,20618.0,0.34188505]
[1673753009835,0.78154606,20630.0,20619.0,0.37036842]
[1673753009836,0.35337203,20621.0,20619.0,0.37036842]
[1673753010096,0.35337203,20621.0,20619.0,0.51699977]
[1673753010355,0.35337203,20621.0,20619.0,0.37036842]
[1673753010611,0.35337203,20621.0,20619.0,0.03703684]
[1673753010860,0.35337203,20621.0,20617.0,0.31529245]
[1673753011118,0.54409798,20621.0,20617.0,0.31529245]
[1673753011375,0.54409798,20621.0,20618.0,0.35016386]
[1673753011637,0.35337203,20621.0,20618.0,0.83516886]
[1673753011887,0.07399683,20625.0,20618.0,0.63163635]
[1673753012139,0.26472278,20625.0,20619.0,0.14663135]
[1673753012395,0.29790775,20624.0,20620.0,0.94343105]
[1673753013975,0.29790775,20624.0,20620.0,0.7967997]
[1673753014476,0.4886337,20624.0,20620.0,0.7967997]
[1673753014829,0.4886337,20624.0,20620.0,0.3118507]
[1673753015049,0.321145,20623.0,20617.0,0.643215]
[1673753015300,0.19072595,20622.0,20613.0,0.639108]
[1673753015554,0.67568095,20621.0,20616.0,0.28303488]
[1673753015815,0.67568095,20621.0,20612.0,0.16178]
[1673753015816,0.19072595,20620.0,20612.0,0.16178]
[1673753016089,0.485015,20618.0,20615.0,0.29630332]
[1673753016326,0.321145,20617.0,20615.0,0.29630332]
[1673753016585,0.321145,20617.0,20613.0,0.3466366]
[1673753016586,0.21483,20616.0,20613.0,0.3466366]
[1673753016839,1.16087395,20616.0,20613.0,0.3466366]
[1673753017377,0.970148,20616.0,20613.0,0.3466366]
[1673753017628,0.970148,20616.0,20611.0,0.01831266]
[1673753017921,0.34225306,20615.0,20611.0,0.39233237]
[1673753018141,0.53297901,20615.0,20611.0,0.39233237]
[1673753018389,1.50317101,20615.0,20611.0,0.39233237]
[1673753019410,1.31244506,20615.0,20611.0,0.38733237]
[1673753019673,1.31244506,20615.0,20611.0,0.53396372]
[1673753020014,0.29310921,20618.0,20612.0,0.50329803]
[1673753020186,0.29310921,20618.0,20613.0,0.14663135]
[1673753020440,0.34053052,20620.0,20614.0,0.14663135]
[1673753020694,0.866826,20622.0,20614.0,0.14663135]
[1673753020695,0.30829676,20622.0,20615.0,0.63169835]
[1673753020944,0.30829676,20622.0,20616.0,0.44663135]
[1673753021217,0.14341232,20624.0,20617.0,0.72483119]
[1673753021461,0.07399683,20625.0,20618.0,0.63233304]
[1673753021766,0.07399683,20625.0,20620.0,0.969926]
[1673753021767,0.29127074,20624.0,20620.0,0.969926]
[1673753021998,0.29127074,20624.0,20621.0,0.14663135]
[1673753022258,0.29127074,20624.0,20621.0,0.19763147]
[1673753022560,0.29127074,20624.0,20622.0,0.484919]
[1673753022796,0.07399683,20625.0,20622.0,0.484919]
[1673753023050,0.07399683,20625.0,20621.0,0.484925]
[1673753023051,0.31734995,20624.0,20621.0,0.484925]
[1673753023331,0.5080759,20624.0,20619.0,0.33569205]
[1673753023594,0.19072595,20623.0,20621.0,0.34847155]
[1673753023868,0.31734995,20624.0,20621.0,0.34847155]
[1673753025186,0.07399683,20625.0,20621.0,0.63156835]
[1673753025399,0.07399683,20625.0,20623.0,0.37273106]
[1673753025940,0.07399683,20625.0,20623.0,0.85762106]
[1673753026501,0.07399683,20625.0,20623.0,0.63152135]
[1673753026718,0.07399683,20625.0,20624.0,0.2927]
[1673753026971,0.07399683,20625.0,20624.0,1.262442]
[1673753027227,0.07399683,20625.0,20624.0,1.34345513]
[1673753027491,0.07399683,20625.0,20624.0,1.73642328]
[1673753027768,0.07399683,20625.0,20624.0,1.44345513]
[1673753028317,0.07399683,20625.0,20624.0,1.29791051]
[1673753028558,0.07399683,20625.0,20624.0,0.969742]
[1673753029088,0.07399683,20625.0,20624.0,1.269742]
[1673753030587,0.07399683,20625.0,20624.0,1.30504254]
[1673753031094,0.07399683,20625.0,20624.0,0.784871]
[1673753031350,0.07399683,20625.0,20624.0,0.77820246]
[1673753031609,0.07399683,20625.0,20624.0,0.479871]
[1673753032125,0.07399683,20625.0,20624.0,0.579871]
[1673753032377,0.07399683,20625.0,20624.0,0.479871]
[1673753032641,0.07399683,20625.0,20624.0,0.779871]
[1673753033166,0.07399683,20625.0,20624.0,0.479871]
[1673753033463,0.07399683,20625.0,20623.0,0.484877]
[1673753033710,0.64855699,20625.0,20623.0,0.37381167]
[1673753033957,0.45783104,20625.0,20623.0,0.37381167]
[1673753034468,0.06399683,20625.0,20623.0,0.37381167]
[1673753035723,0.06399683,20625.0,20624.0,0.37678328]
[1673753036229,0.06399683,20625.0,20624.0,0.86165428]
[1673753036756,0.06399683,20625.0,20624.0,1.16165428]
[1673753037263,0.06399683,20625.0,20624.0,0.86165428]
[1673753041617,0.06399683,20625.0,20624.0,0.37678328]
[1673753044748,0.06399683,20625.0,20620.0,0.484952]
[1673753045032,0.19072595,20624.0,20621.0,0.34821097]
[1673753045273,0.19072595,20623.0,20618.0,0.484999]
[1673753045526,0.19072595,20622.0,20620.0,0.32734123]
[1673753045900,0.4849,20623.0,20621.0,0.38739275]
[1673753046045,0.484892,20624.0,20621.0,0.38739275]
[1673753046297,0.30806652,20622.0,20618.0,0.54639282]
[1673753046558,0.30806652,20622.0,20618.0,1.18803417]
[1673753046823,0.49879247,20622.0,20618.0,1.03140282]
[1673753047899,0.71420083,20625.0,20618.0,0.80621135]
[1673753047900,0.54885083,20625.0,20618.0,0.80621135]
[1673753048154,0.63288114,20625.0,20619.0,0.55663135]
[1673753048418,0.44215519,20625.0,20620.0,1.12652535]
[1673753048651,0.06399683,20625.0,20621.0,0.15663135]
[1673753048908,0.06399683,20625.0,20622.0,0.969828]
[1673753049165,0.38548829,20625.0,20622.0,1.12645935]
[1673753049415,0.38548829,20625.0,20622.0,0.969828]
[1673753049933,0.05399683,20625.0,20622.0,0.969828]
[1673753050470,0.05399683,20625.0,20622.0,1.12645935]
[1673753050722,0.05399683,20625.0,20623.0,0.3]
[1673753051033,0.05399683,20625.0,20624.0,1.454613]
[1673753051238,0.05399683,20625.0,20624.0,1.554613]
[1673753051506,0.05399683,20625.0,20624.0,1.854613]
[1673753051751,0.05399683,20625.0,20624.0,2.15433379]
[1673753052337,0.05399683,20625.0,20624.0,1.854613]
[1673753054122,0.05399683,20625.0,20624.0,1.81455672]
[1673753054629,0.05399683,20625.0,20624.0,0.35994372]
[1673753055956,0.05399683,20625.0,20624.0,0.84481472]
[1673753056249,0.05399683,20625.0,20624.0,0.784871]
[1673753056743,0.05399683,20625.0,20624.0,0.884871]
[1673753058285,0.05399683,20625.0,20624.0,1.02945773]
[1673753058564,0.05399683,20625.0,20624.0,1.28222205]
[1673753058882,0.05399683,20625.0,20624.0,1.42714257]
[1673753059079,0.05399683,20625.0,20624.0,1.41714257]
[1673753060095,0.05399683,20625.0,20624.0,1.02763532]
[1673753060351,0.05399683,20625.0,20624.0,1.46149014]
[1673753061159,0.05399683,20625.0,20624.0,1.1002438]
[1673753061479,0.05399683,20625.0,20624.0,1.31754323]
[1673753061664,0.05399683,20625.0,20624.0,1.1002438]
[1673753061914,0.05399683,20625.0,20624.0,1.6056601]
[1673753062162,0.05399683,20625.0,20624.0,1.46149014]
[1673753062674,0.05399683,20625.0,20624.0,1.1002438]
[1673753062936,0.05399683,20625.0,20624.0,1.46246264]
[1673753063196,0.05399683,20625.0,20624.0,1.1002438]
[1673753063468,0.05399683,20625.0,20624.0,1.31757238]
[1673753063732,0.05399683,20625.0,20624.0,1.31760093]
[1673753063992,0.05399683,20625.0,20624.0,1.10027235]
[1673753064231,0.05399683,20625.0,20624.0,1.46248239]
[1673753064483,0.05399683,20625.0,20624.0,1.10027235]
[1673753064750,0.05399683,20625.0,20624.0,1.46262399]
[1673753065255,0.05399683,20625.0,20624.0,1.31768552]
[1673753065513,0.05399683,20625.0,20624.0,1.31768558]
[1673753065806,0.05399683,20625.0,20624.0,1.3176908]
[1673753066066,0.05399683,20625.0,20624.0,1.10027235]
[1673753067419,0.05399683,20625.0,20624.0,1.46265991]
[1673753068193,0.05399683,20625.0,20624.0,1.60682987]
[1673753068484,0.05399683,20625.0,20624.0,1.46265991]
[1673753069536,0.04859715,20625.0,20624.0,0.81049461]
[1673753069807,0.00464062,20627.0,20624.0,1.87913271]
[1673753070050,0.00464062,20627.0,20625.0,0.77795665]
[1673753070305,0.00464062,20627.0,20626.0,0.47720169]
[1673753070579,0.00464062,20627.0,20626.0,2.2672973]
[1673753071081,0.00464062,20627.0,20626.0,2.70201728]
[1673753071343,0.00464062,20627.0,20626.0,2.2672973]
[1673753071599,0.19536657,20627.0,20626.0,1.754472]
[1673753071938,0.19536657,20627.0,20626.0,0.54288812]
[1673753071939,0.56097799,20627.0,20626.0,0.54288812]
[1673753072106,0.00464062,20627.0,20626.0,0.28984261]
[1673753072363,0.00464062,20627.0,20626.0,0.57385685]
[1673753072626,0.00464062,20627.0,20626.0,0.71877476]
[1673753072887,0.00464062,20627.0,20626.0,0.43476052]
[1673753073147,0.00464062,20627.0,20626.0,1.46244468]
[1673753073408,0.00464062,20627.0,20626.0,1.76244468]
[1673753073673,0.00464062,20627.0,20626.0,1.9073294]
[1673753073941,0.00464062,20627.0,20626.0,1.9072883]
[1673753075234,0.00464062,20627.0,20626.0,2.09469708]
[1673753075766,0.50183575,20630.0,20626.0,1.73244657]
[1673753076024,0.6925617,20630.0,20627.0,0.48283922]
[1673753076323,0.30841059,20629.0,20627.0,0.03565422]
[1673753076814,0.1,20628.0,20627.0,0.03565422]
[1673753077336,0.484777,20628.0,20627.0,0.03565422]
[1673753077595,0.84916154,20628.0,20626.0,0.43476052]
[1673753077857,0.98656975,20630.0,20626.0,0.81929562]
[1673753078109,1.27372412,20630.0,20627.0,0.29747802]
[1673753078357,0.32165081,20629.0,20627.0,0.29747802]
[1673753079655,0.32165081,20629.0,20626.0,0.43476052]
[1673753079913,0.66994982,20628.0,20626.0,0.43476052]
[1673753080193,0.321145,20627.0,20626.0,0.43476052]
[1673753080422,0.421145,20627.0,20626.0,0.43476052]
[1673753081429,0.905946,20627.0,20626.0,0.43476052]
[1673753082473,1.23048776,20627.0,20626.0,0.43476052]
[1673753083506,1.205946,20627.0,20626.0,0.43476052]
[1673753084002,0.905946,20627.0,20626.0,0.42976052]
[1673753084269,0.805946,20627.0,20626.0,0.42976052]
[1673753084522,1.04963547,20627.0,20626.0,0.42976052]
[1673753084782,2.0315112,20627.0,20623.0,0.28986155]
[1673753085044,0.141,20624.0,20623.0,0.28986155]
[1673753085309,0.141,20624.0,20620.0,0.64191259]
[1673753085310,0.1,20623.0,20620.0,0.64191259]
[1673753085571,0.2399,20621.0,20619.0,1.1310705]
[1673753085830,0.99683695,20620.0,20619.0,1.1310705]
[1673753086108,1.776043,20620.0,20619.0,1.1310705]
[1673753086852,1.771043,20620.0,20619.0,1.1310705]
[1673753087369,1.286077,20620.0,20619.0,1.1310705]
[1673753088402,1.59536745,20620.0,20619.0,1.1310705]
[1673753090203,1.82244223,20620.0,20619.0,1.1310705]
[1673753090467,2.20512629,20620.0,20619.0,1.1310705]
[1673753091234,2.20512629,20620.0,20618.0,0.3119393]
[1673753091492,1.00551395,20619.0,20617.0,0.0166071]
[1673753091746,1.771185,20618.0,20617.0,0.0166071]
[1673753092011,0.1,20617.0,20615.0,0.01773955]
[1673753092269,1.98273129,20616.0,20615.0,0.01773955]
[1673753092612,2.65023129,20616.0,20615.0,0.01773955]
[1673753092820,3.0151292,20616.0,20615.0,0.01773955]
[1673753093077,3.34764839,20616.0,20615.0,0.01773955]
[1673753093625,3.24314418,20616.0,20615.0,0.01773955]
[1673753094151,3.23464418,20616.0,20615.0,0.01773955]
[1673753094901,2.27434418,20616.0,20615.0,0.01773955]
[1673753095168,0.21483,20616.0,20615.0,0.1743709]
[1673753095420,0.32048382,20620.0,20615.0,0.1743709]
[1673753095421,0.95883582,20620.0,20615.0,0.31099575]
[1673753095679,0.1308,20622.0,20616.0,0.15663135]
[1673753095934,0.8822,20623.0,20617.0,0.15663135]
[1673753096209,0.8822,20623.0,20618.0,0.64163335]
[1673753096459,0.8822,20623.0,20618.0,0.15663135]
[1673753096460,0.29278205,20620.0,20618.0,0.15663135]
[1673753096717,0.29278205,20620.0,20616.0,0.77335876]
[1673753096718,0.321139,20619.0,20616.0,0.77335876]
[1673753096981,0.19072595,20619.0,20616.0,0.485039]
[1673753097501,0.29278205,20620.0,20616.0,0.485039]
[1673753097836,0.28089,20622.0,20616.0,0.485039]
[1673753098008,0.37085177,20621.0,20617.0,0.15663135]
[1673753098261,0.68244178,20621.0,20617.0,0.34789644]
[1673753098513,0.68244178,20621.0,20615.0,0.88541542]
[1673753098514,0.321139,20620.0,20615.0,0.88541542]
[1673753098778,0.53236295,20619.0,20615.0,0.88541542]
[1673753099030,0.1,20618.0,20615.0,0.88541542]
[1673753099277,0.19072595,20618.0,20615.0,0.40034242]
[1673753099530,0.1,20617.0,20615.0,0.40034242]
[1673753099800,0.29072595,20618.0,20615.0,0.40034242]
[1673753100052,0.1,20618.0,20615.0,0.40034242]
[1673753100357,1.201799,20619.0,20615.0,0.40034242]
[1673753100573,1.29962365,20618.0,20615.0,0.01773955]
[1673753100830,0.321139,20617.0,20616.0,0.15515865]
[1673753101086,0.8777977,20618.0,20616.0,0.15515865]
[1673753101331,1.3628317,20618.0,20616.0,0.15515865]
[1673753101596,0.485034,20618.0,20616.0,0.15515865]
[1673753101854,0.484991,20619.0,20616.0,0.15515865]
[1673753102102,0.80106351,20620.0,20616.0,0.31179]
[1673753102355,0.484936,20622.0,20617.0,0.15663135]
[1673753102618,1.32708556,20625.0,20618.0,0.15663135]
[1673753102878,0.3968202,20624.0,20619.0,0.15663135]